fUST/lending_fUST_20241127
["ID","MTS","AMOUNT","RATE_DAILY","PERIOD"]
[343515948,1732707032871,-266.15492853,0.00027373,2]
[343515949,1732707032881,-160.08663642,0.00027373,2]
[343515950,1732707032890,-156.0,0.00027386,2]
[343515951,1732707032900,-171.0,0.00027386,2]
[343515952,1732707032909,-659.37,0.00027387,10]
[343515953,1732707032919,-549.48,0.00027387,10]
[343515954,1732707032928,-457.9,0.00027387,10]
[343515956,1732707032938,-381.58,0.00027387,10]
[343515958,1732707032947,-5000.0,0.00027395,2]
[343515959,1732707032956,-503.18974741,0.00027397,3]
[343515961,1732707032966,-285.82551538,0.00027397,3]
[343515963,1732707032975,-500.0,0.00027397,3]
[343515965,1732707032985,-500.0,0.00027397,3]
[343515967,1732707032994,-500.0,0.00027397,3]
[343515969,1732707033004,-500.0,0.00027397,3]
[343515970,1732707033012,-500.0,0.00027397,3]
[343515971,1732707033022,-500.0,0.00027397,3]
[343515972,1732707033033,-501.73887344,0.00027397,3]
[343515973,1732707033045,-500.0,0.00027397,3]
[343515974,1732707033055,-500.0,0.00027397,3]
[343515975,1732707033065,-500.0,0.00027397,3]
[343515976,1732707033074,-500.0,0.00027397,3]
[343515977,1732707033084,-452.9196417,0.00027397,3]
[343515978,1732707033095,-500.0,0.00027397,3]
[343515979,1732707033105,-500.0,0.00027397,3]
[343515980,1732707033115,-500.0,0.00027397,3]
[343515981,1732707033124,-500.0,0.00027397,3]
[343515982,1732707033134,-500.0,0.00027397,3]
[343515983,1732707033143,-500.0,0.00027397,3]
[343515984,1732707033153,-500.0,0.00027397,3]
[343515985,1732707033163,-500.0,0.00027397,3]
[343515986,1732707033173,-500.0,0.00027397,3]
[343515987,1732707033183,-306.33583472,0.00027397,3]
[343515988,1732707033192,-500.0,0.00027397,3]
[343515989,1732707033202,-500.0,0.00027397,3]
[343515990,1732707033212,-500.0,0.00027397,3]
[343515991,1732707033221,-491.8172539,0.00027397,3]
[343515992,1732707033230,-500.0,0.00027397,3]
[343515993,1732707033240,-500.0,0.00027397,3]
[343515994,1732707033249,-500.0,0.00027397,3]
[343515995,1732707033258,-500.0,0.00027397,3]
[343515996,1732707033268,-500.0,0.00027397,3]
[343515997,1732707033277,-500.0,0.00027397,3]
[343515998,1732707033290,-527.62,0.00027397,3]
[343515999,1732707033300,-500.0,0.00027397,3]
[343516000,1732707033310,-500.0,0.00027397,3]
[343516001,1732707033320,-500.0,0.00027397,3]
[343516002,1732707033330,-500.0,0.00027397,3]
[343516003,1732707033339,-500.0,0.00027397,3]
[343516004,1732707033349,-500.0,0.00027397,3]
[343516005,1732707033358,-512.71422551,0.00027397,3]
[343516006,1732707033368,-555.30793289,0.00027397,3]
[343516007,1732707033379,-500.0,0.00027397,3]
[343516008,1732707033389,-441.71861684,0.00027397,3]
[343516009,1732707033399,-500.0,0.00027397,3]
[343516010,1732707033408,-500.0,0.00027397,3]
[343516011,1732707033418,-500.0,0.00027397,3]
[343516012,1732707033427,-500.0,0.00027397,3]
[343516013,1732707033437,-617.62915594,0.00027397,3]
[343516014,1732707033447,-500.0,0.00027397,3]
[343516015,1732707033457,-500.0,0.00027397,3]
[343516016,1732707033466,-174.12749284,0.00027397,3]
[343516017,1732707033476,-506.78885474,0.00027397,3]
[343516018,1732707033486,-501.9579079,0.00027397,3]
[343516019,1732707033495,-500.0,0.00027397,3]
[343516020,1732707033506,-500.0,0.00027397,3]
[343516021,1732707033521,-500.0,0.00027397,3]
[343516022,1732707033531,-500.0,0.00027397,3]
[343516023,1732707033544,-564.84,0.00027397,3]
[343516024,1732707033555,-500.0,0.00027397,3]
[343516025,1732707033564,-500.0,0.00027397,3]
[343516026,1732707033574,-500.0,0.00027397,3]
[343516027,1732707033585,-500.0,0.00027397,3]
[343516028,1732707033595,-162.50969933,0.00027397,3]
[343516029,1732707033607,-500.0,0.00027397,3]
[343516030,1732707033616,-500.0,0.00027397,3]
[343516031,1732707033626,-500.0,0.00027397,3]
[343516032,1732707033636,-500.0,0.00027397,3]
[343516033,1732707033645,-503.11906055,0.00027397,3]
[343516034,1732707033655,-628.0702955,0.00027397,3]
[343516035,1732707033664,-500.0,0.00027397,3]
[343516036,1732707033673,-500.0,0.00027397,3]
[343516037,1732707033683,-500.0,0.00027397,3]
[343516038,1732707033693,-500.0,0.00027397,3]
[343516039,1732707033703,-500.0,0.00027397,3]
[343516040,1732707033712,-500.0,0.00027397,3]
[343516041,1732707033722,-500.0,0.00027397,3]
[343516042,1732707033731,-500.0,0.00027397,3]
[343516043,1732707033741,-500.0,0.00027397,3]
[343516044,1732707033750,-500.0,0.00027397,3]
[343516045,1732707033759,-500.0,0.00027397,3]
[343516046,1732707033769,-500.0,0.00027397,3]
[343516047,1732707033782,-500.0,0.00027397,3]
[343516048,1732707033795,-500.0,0.00027397,3]
[343516049,1732707033804,-500.0,0.00027397,3]
[343516050,1732707033815,-500.0,0.00027397,3]
[343516051,1732707033825,-500.0,0.00027397,3]
[343516052,1732707033835,-500.0,0.00027397,3]
[343516053,1732707033845,-500.0,0.00027397,3]
[343516054,1732707033854,-500.0,0.00027397,3]
[343516055,1732707033864,-500.0,0.00027397,3]
[343516056,1732707033875,-500.0,0.00027397,3]
[343516057,1732707033886,-500.0,0.00027397,3]
[343516058,1732707033896,-500.0,0.00027397,3]
[343516059,1732707033905,-500.0,0.00027397,3]
[343516060,1732707033915,-500.0,0.00027397,3]
[343516061,1732707033924,-500.0,0.00027397,3]
[343516062,1732707033933,-500.0,0.00027397,3]
[343516063,1732707033943,-500.0,0.00027397,3]
[343516064,1732707033953,-500.0,0.00027397,3]
[343516065,1732707033962,-500.0,0.00027397,3]
[343516066,1732707033972,-500.0,0.00027397,3]
[343516067,1732707033981,-500.0,0.00027397,3]
[343516068,1732707033991,-500.0,0.00027397,3]
[343516069,1732707034001,-500.0,0.00027397,3]
[343516070,1732707034010,-205.09530956,0.00027397,3]
[343516071,1732707034020,-500.0,0.00027397,3]
[343516072,1732707034030,-329.47105468,0.00027397,3]
[343516073,1732707034041,-500.0,0.00027397,3]
[343516074,1732707034050,-500.0,0.00027397,3]
[343516075,1732707034060,-500.0,0.00027397,3]
[343516076,1732707034069,-500.0,0.00027397,3]
[343516077,1732707034079,-252.5692559,0.00027397,3]
[343516078,1732707034089,-500.0,0.00027397,3]
[343516079,1732707034099,-500.0,0.00027397,3]
[343516080,1732707034108,-500.0,0.00027397,3]
[343516081,1732707034118,-454.95157795,0.00027397,3]
[343516082,1732707034127,-152.70773377,0.00027397,3]
[343516083,1732707034137,-500.0,0.00027397,3]
[343516084,1732707034147,-500.0,0.00027397,3]
[343516085,1732707034157,-500.0,0.00027397,3]
[343516086,1732707034167,-500.0,0.00027397,3]
[343516087,1732707034176,-500.0,0.00027397,3]
[343516088,1732707034186,-500.0,0.00027397,3]
[343516089,1732707034195,-500.0,0.00027397,3]
[343516090,1732707034205,-500.0,0.00027397,3]
[343516091,1732707034217,-637.45,0.00027397,3]
[343516092,1732707034227,-279.46013884,0.00027397,3]
[343516093,1732707034237,-341.90628674,0.00027397,3]
[343516094,1732707034247,-167.93621,0.00027487,2]
[343516095,1732707034256,-44403.76627584,0.000275,2]
[343516096,1732707034266,-156.0,0.00027616,2]
[343516097,1732707034275,-171.0,0.00027616,2]
[343516098,1732707034288,-153.0,0.00027641,2]
[343516099,1732707034298,-153.0,0.00027641,2]
[343516100,1732707034307,-996.73360955,0.00027812,2]
[343516101,1732707034317,-167.93621,0.0002788,2]
[343516102,1732707034328,-1013.77208941,0.000279,2]
[343516103,1732707034338,-500.0,0.00027921,5]
[343516104,1732707034349,-16553.63760229,0.0002799,2]
[343516105,1732707034363,-13362.73607613,0.0002799,2]
[343516145,1732707038128,-1072.71911864,0.00027093,2]
[343516146,1732707038139,-647.22299451,0.00027397,3]
[343516147,1732707038149,-2108.03901736,0.0002799,2]
[343516148,1732707038159,-1169.28465515,0.0002799,7]
[343516149,1732707038168,-36504.15565398,0.00028,7]
[343516155,1732707038306,-3828.65841742,0.00028,7]
[343516164,1732707040055,-317.98,0.0002799,10]
[343516165,1732707040064,-892.94152952,0.00028,7]
[343516168,1732707043127,-252.19962707,0.00027499,2]
[343516169,1732707043313,-384.30225632,0.00027499,2]
[343516170,1732707043322,-500.0,0.00027499,2]
[343516171,1732707043332,-500.0,0.00027499,2]
[343516172,1732707043342,-500.0,0.00027499,2]
[343516174,1732707043351,-500.0,0.00027499,2]
[343516176,1732707043361,-500.0,0.00027499,2]
[343516177,1732707043370,-500.0,0.00027499,2]
[343516178,1732707043381,-171.38255227,0.00027499,2]
[343516179,1732707043391,-500.0,0.00027499,2]
[343516180,1732707043400,-500.0,0.00027499,2]
[343516181,1732707043410,-462.55637239,0.00027499,2]
[343516204,1732707046138,-37.44362761,0.00027499,2]
[343516205,1732707046148,-500.0,0.00027499,2]
[343516206,1732707046157,-500.0,0.00027499,2]
[343516207,1732707046168,-500.0,0.00027499,2]
[343516208,1732707046177,-500.0,0.00027499,2]
[343516209,1732707046187,-181.37821576,0.00027499,2]
[343516210,1732707046197,-500.0,0.00027499,2]
[343516211,1732707046318,-301.52784807,0.00027499,2]
[343516212,1732707046331,-500.0,0.00027499,2]
[343516213,1732707046341,-500.0,0.00027499,2]
[343516214,1732707046350,-500.0,0.00027499,2]
[343516215,1732707046361,-500.0,0.00027499,2]
[343516216,1732707046370,-500.0,0.00027499,2]
[343516217,1732707046381,-246.5138432,0.00027499,2]
[343516218,1732707046393,-253.4861568,0.00027499,2]
[343516219,1732707046403,-500.0,0.00027499,2]
[343516220,1732707046413,-500.0,0.00027499,2]
[343516221,1732707046422,-500.0,0.00027499,2]
[343516222,1732707046432,-500.0,0.00027499,2]
[343516223,1732707046442,-500.0,0.00027499,2]
[343516224,1732707046452,-500.0,0.00027499,2]
[343516225,1732707046461,-500.0,0.00027499,2]
[343516226,1732707046471,-500.0,0.00027499,2]
[343516227,1732707046481,-500.0,0.00027499,2]
[343516228,1732707046491,-77.34244495,0.00027499,2]
[343516248,1732707629325,205.511142,0.00013973,2]
[343516249,1732707629541,205.511142,0.00020447,2]
[343516250,1732707632326,402.2593075,0.00031145,120]
[343516253,1732708031753,-251.26147,0.00024273,2]
[343516254,1732708031775,-167.571525,0.00025531,2]
[343516255,1732708031798,-414.56226107,0.00025723,2]
[343516256,1732708032121,-89.49162343,0.00025723,2]
[343516257,1732708032144,-250.0,0.0002579,2]
[343516258,1732708032166,-210.2138,0.00025805,2]
[343516259,1732708032188,-192.5701824,0.00025835,2]
[343516260,1732708032211,-425.0694534,0.00025893,2]
[343516261,1732708032232,-1838.50482353,0.00025902,2]
[343516311,1732708232265,-841.60243447,0.00024703,2]
[343516312,1732708232274,-167.508035,0.00024953,2]
[343516313,1732708232284,-1205.11488717,0.00025902,2]
[343516314,1732708232294,-375.06006,0.00026188,2]
[343516315,1732708232303,-205.511142,0.00026921,2]
[343516316,1732708232312,-210.2138,0.00027175,2]
[343516317,1732708232322,-300.0,0.00027295,2]
[343516318,1732708232332,-300.0,0.00027295,2]
[343516319,1732708232342,-2720.0,0.00027296,2]
[343516320,1732708232351,-180.77693486,0.00027297,16]
[343516321,1732708232361,-10281.6186769,0.00027297,2]
[343516322,1732708232372,-10551.21448635,0.00027297,2]
[343516323,1732708232384,-300.0,0.00027297,2]
[343516343,1732708238501,-770.65729294,0.00027297,2]
[343516344,1732708238511,-4217.98398707,0.00027297,2]
[343516345,1732708238523,-36150.84865472,0.00027297,2]
[343516360,1732708243450,-5976.46986851,0.00027297,2]
[343516377,1732708325409,182.66411,0.00013973,2]
[343516378,1732708325616,182.66411,0.00020447,2]
[343516386,1732709061404,172.377339,0.00013973,2]
[343516387,1732709061638,172.377339,0.00020447,2]
[343516391,1732709251210,-761.63034392,0.00024456,2]
[343516392,1732709251233,-500.0,0.00025205,2]
[343516393,1732709251256,-319.81414816,0.00025205,2]
[343516396,1732709359087,-180.18585184,0.00025205,2]
[343516397,1732709359109,-334.66757769,0.00025205,2]
[343516398,1732709359130,-168.5602516,0.00025945,2]
[343516399,1732709359150,-187.53003,0.00026119,2]
[343516400,1732709359171,-244.36411554,0.00026222,2]
[343516419,1732709432387,-425.9999,0.00026222,2]
[343516420,1732709432444,-148.49662246,0.00026222,2]
[343516421,1732709432454,-818.860638,0.00026907,2]
[343516422,1732709432465,-172.377339,0.00026921,2]
[343516423,1732709432474,-300.0,0.00027396,2]
[343516424,1732709432483,-300.0,0.00027396,2]
[343516425,1732709432492,-823.0,0.00027396,2]
[343516426,1732709432501,-335.83945609,0.00027397,3]
[343516433,1732709438410,-164.16054391,0.00027397,3]
[343516434,1732709438420,-500.0,0.00027397,3]
[343516435,1732709438429,-500.0,0.00027397,3]
[343516436,1732709438439,-500.0,0.00027397,3]
[343516438,1732709438449,-500.0,0.00027397,3]
[343516440,1732709438458,-500.0,0.00027397,3]
[343516442,1732709438466,-500.0,0.00027397,3]
[343516444,1732709438476,-500.0,0.00027397,3]
[343516446,1732709438486,-500.0,0.00027397,3]
[343516448,1732709438495,-543.47752,0.00027397,3]
[343516450,1732709438505,-500.0,0.00027397,3]
[343516452,1732709438517,-818.860638,0.00027592,2]
[343516455,1732709438526,-173.87,0.0002789,3]
[343516458,1732709438535,-521.62,0.0002789,3]
[343516461,1732709438544,-264.99,0.0002789,10]
[343516464,1732709438553,-616.05,0.00027899,3]
[343516466,1732709438562,-500.0,0.00027899,3]
[343516468,1732709438571,-500.0,0.00027899,2]
[343516470,1732709438580,-500.0,0.00027899,2]
[343516472,1732709438590,-500.0,0.00027899,2]
[343516474,1732709438598,-500.0,0.00027899,2]
[343516476,1732709438608,-500.0,0.00027899,2]
[343516478,1732709438617,-302.42884748,0.00027899,2]
[343516480,1732709438626,-500.0,0.00027899,2]
[343516481,1732709438635,-500.0,0.00027899,2]
[343516483,1732709438644,-500.0,0.00027899,2]
[343516485,1732709438653,-500.0,0.00027899,2]
[343516487,1732709438662,-382.14165063,0.00027899,2]
[343516489,1732709438671,-500.0,0.00027899,2]
[343516491,1732709438680,-415.44257031,0.00027899,2]
[343516493,1732709438689,-500.0,0.00027899,2]
[343516495,1732709438699,-500.0,0.00027899,2]
[343516497,1732709438708,-433.77136811,0.00027899,2]
[343516499,1732709438717,-500.0,0.00027899,2]
[343516501,1732709438726,-500.0,0.00027899,3]
[343516503,1732709438736,-500.0,0.00027899,3]
[343516505,1732709438744,-500.0,0.00027899,3]
[343516507,1732709438754,-500.0,0.00027899,3]
[343516509,1732709438763,-1785.70936763,0.000279,2]
[343516511,1732709438776,-513.77152862,0.000279,2]
[343516513,1732709438785,-21217.8334879,0.000279,2]
[343516515,1732709438794,-11495.55119211,0.000279,2]
[343516518,1732709438806,-35025.7800329,0.000279,2]
[343516520,1732709438817,-10360.79999983,0.000279,2]
[343516522,1732709438828,-33155.75308911,0.000279,2]
[343516682,1732709443343,-747.55020718,0.000278,2]
[343516683,1732709443355,-220.82,0.0002789,10]
[343516684,1732709443365,-1012.63140217,0.000279,2]
[343516706,1732709837905,162.631977,0.00013973,2]
[343516707,1732709838129,162.631977,0.00020807,2]
[343516713,1732709966661,25000.0,0.0001,2]
[343516714,1732709966686,125000.0,0.0001,2]
[343516732,1732710444207,-163.724344,0.0002609,2]
[343516733,1732710444228,-250.0,0.0002627,2]
[343516734,1732710444254,-175.58812019,0.00026354,2]
[343516735,1732710449109,-19.53500719,0.00026354,2]
[343516736,1732710449131,-167.693198,0.00026473,2]
[343516737,1732710449150,-1410.5228543,0.00026494,2]
[343516738,1732710449170,-661.2662937,0.00026721,2]
[343516739,1732710449191,-1173.89122733,0.0002751,2]
[343516740,1732710494248,395.70662297,0.0002,2]
[343516742,1732710523405,18284.87730652,0.00020377,2]
[343516744,1732710524897,9323.81421593,0.0001999,2]
[343516746,1732710564131,-1115.30782667,0.00026,30]
[343516755,1732710632540,-542.69896733,0.00026,30]
[343516756,1732710632552,-500.0,0.00026246,7]
[343516757,1732710632564,-345.026486,0.0002638,2]
[343516758,1732710632575,-500.0,0.00027068,7]
[343516759,1732710632586,-162.631977,0.00027641,2]
[343516760,1732710632597,-184.02,0.0002779,10]
[343516761,1732710632607,-244.59,0.0002779,3]
[343516762,1732710632625,-300.0,0.00027798,2]
[343516763,1732710632640,-300.0,0.00027798,2]
[343516764,1732710632650,-270.4190409,0.00027799,2]
[343516765,1732710632662,-311.38098305,0.00027799,2]
[343516766,1732710632676,-654.1064313,0.00027799,2]
[343516767,1732710632688,-3794.5131955,0.000278,2]
[343516821,1732710640447,-153.35,0.0002779,10]
[343516822,1732710640459,-733.82,0.0002779,3]
[343516823,1732710640470,-342.51435242,0.000278,2]
[343516824,1732710640480,-241.23875772,0.000278,2]
[343516857,1732710647363,165.0,0.00022,2]
[343516858,1732710647702,165.0,0.00022192,2]
[343516859,1732710774636,162.453201,0.00013973,2]
[343516860,1732710774832,162.453201,0.00021661,2]
[343516878,1732711441738,162.486844,0.00013973,2]
[343516879,1732711441955,162.486844,0.00022174,2]
[343516880,1732711632153,-162.2596728,0.00025852,2]
[343516881,1732711632175,-564.61082774,0.00026,2]
[343516882,1732711632196,-82.11647634,0.0002606,2]
[343516883,1732711637105,-3048.55575253,0.0002606,2]
[343516920,1732711838730,-205.78069563,0.0002606,2]
[343516921,1732711838739,-172.513243,0.00026126,2]
[343516922,1732711838750,-192.5701824,0.00026126,2]
[343516923,1732711838759,-417.5840638,0.00026257,2]
[343516924,1732711838770,-153.0,0.000266,2]
[343516925,1732711838779,-500.0,0.00027342,7]
[343516926,1732711838789,-1207.95877267,0.0002764,2]
[343516927,1732711838799,-593.74923059,0.00027673,2]
[343516928,1732711838809,-489.18,0.0002769,3]
[343516929,1732711838819,-766.76,0.0002769,10]
[343516930,1732711838831,-300.0,0.00027698,2]
[343516931,1732711838840,-300.0,0.00027698,2]
[343516932,1732711838850,-811.01767152,0.00027699,2]
[343516933,1732711838860,-502.25,0.00027699,3]
[343516934,1732711838869,-892.85468381,0.000277,2]
[343516935,1732711838878,-228.34290161,0.000277,2]
[343516936,1732711838887,-3982.88220892,0.000277,2]
[343516944,1732711844091,-211.887356,0.00026698,2]
[343516945,1732711844100,-448.112644,0.000277,2]
[343516946,1732711844111,-1840.0,0.000277,2]
[343516955,1732711846527,-500.0,0.00027699,3]
[343516956,1732711846537,-204410.21994855,0.000277,2]
[343516998,1732712319447,-127927.77269938,0.00028,30]
[343516999,1732712319472,-3613.26970934,0.00028402,30]
[343517000,1732712319503,-153.3,0.000297,31]
[343517001,1732712319528,-153.3,0.000297,31]
[343517002,1732712319554,-153.3,0.000297,31]
[343517003,1732712319578,-153.3,0.000297,31]
[343517004,1732712319604,-153.3,0.000297,31]
[343517006,1732712319629,-153.3,0.000297,31]
[343517007,1732712319653,-969.575513,0.00030137,120]
[343517008,1732712319677,-120837.54987328,0.000308,120]
[343517009,1732712319704,-260.71679391,0.000312,30]
[343517010,1732712319729,-153.3,0.000312,31]
[343517011,1732712319754,-153.3,0.000312,31]
[343517012,1732712319778,-153.3,0.000312,31]
[343517013,1732712319801,-153.3,0.000312,31]
[343517014,1732712319826,-153.3,0.000312,31]
[343517015,1732712319850,-153.3,0.000312,31]
[343517016,1732712319875,-153.3,0.000312,31]
[343517018,1732712319995,-153.3,0.000312,31]
[343517019,1732712320025,-153.3,0.000312,31]
[343517020,1732712320051,-153.3,0.000312,31]
[343517021,1732712320078,-153.3,0.000312,31]
[343517022,1732712320104,-153.3,0.000312,31]
[343517023,1732712320129,-1000.0,0.00031506,30]
[343517024,1732712320154,-1000.0,0.00031506,30]
[343517025,1732712320180,-2822.66212467,0.00031508,120]
[343517026,1732712320205,-500.0,0.00032,120]
[343517027,1732712320231,-150.0,0.00032143,120]
[343517028,1732712320263,-153.3,0.000328,31]
[343517029,1732712320292,-153.3,0.000328,31]
[343517031,1732712320320,-153.3,0.000328,31]
[343517032,1732712320347,-153.3,0.000328,31]
[343517033,1732712320373,-153.3,0.000328,31]
[343517034,1732712320398,-153.3,0.000328,31]
[343517035,1732712320423,-153.3,0.000328,31]
[343517036,1732712320447,-153.3,0.000328,31]
[343517037,1732712320473,-153.3,0.000328,31]
[343517038,1732712320498,-153.3,0.000328,31]
[343517039,1732712320526,-153.3,0.000328,31]
[343517040,1732712320550,-153.3,0.000328,31]
[343517041,1732712320573,-676.74,0.00032876,120]
[343517042,1732712320596,-676.74,0.00032876,120]
[343517043,1732712320619,-676.74,0.00032876,120]
[343517044,1732712320642,-676.74,0.00032876,120]
[343517045,1732712320666,-676.74,0.00032876,120]
[343517046,1732712320689,-676.74,0.00032876,120]
[343517047,1732712320712,-676.74,0.00032876,120]
[343517048,1732712320735,-676.74,0.00032876,120]
[343517050,1732712320762,-676.74,0.00032876,120]
[343517051,1732712320785,-676.74,0.00032876,120]
[343517052,1732712320809,-676.74,0.00032876,120]
[343517053,1732712320834,-676.74,0.00032876,120]
[343517054,1732712320858,-676.74,0.00032876,120]
[343517055,1732712320881,-676.74,0.00032876,120]
[343517056,1732712320906,-676.74,0.00032876,120]
[343517057,1732712320932,-676.74,0.00032876,120]
[343517058,1732712320955,-676.74,0.00032876,120]
[343517059,1732712320979,-676.74,0.00032876,120]
[343517060,1732712321004,-676.74,0.00032876,120]
[343517062,1732712321027,-676.74,0.00032876,120]
[343517063,1732712321050,-676.74,0.00032876,120]
[343517064,1732712321073,-676.74,0.00032876,120]
[343517065,1732712321095,-676.74,0.00032876,120]
[343517066,1732712321120,-676.92073186,0.00032876,120]
[343517067,1732712321145,-500.0,0.00033,30]
[343517068,1732712321167,-500.0,0.00033,30]
[343517069,1732712321194,-855.05885594,0.00033,30]
[343517070,1732712321219,-500.0,0.00033,30]
[343517071,1732712321242,-2800.0,0.00033,30]
[343517072,1732712321271,-916.33475152,0.00033,30]
[343517073,1732712321295,-2800.0,0.00033,30]
[343517075,1732712321319,-2800.0,0.00033,30]
[343517076,1732712321349,-2800.0,0.00033,30]
[343517077,1732712321374,-2800.0,0.00033,30]
[343517078,1732712321397,-2800.0,0.00033,30]
[343517079,1732712321420,-2800.0,0.00033,30]
[343517080,1732712321444,-2800.0,0.00033,30]
[343517081,1732712321466,-2800.0,0.00033,30]
[343517082,1732712321489,-2800.0,0.00033,30]
[343517083,1732712321515,-2800.0,0.00033,30]
[343517084,1732712321539,-2800.0,0.00033,30]
[343517085,1732712321563,-2800.0,0.00033,30]
[343517086,1732712321587,-2700.0,0.00033,30]
[343517087,1732712321610,-4050.49047517,0.00033,30]
[343517088,1732712321633,-2700.0,0.00033,30]
[343517089,1732712321656,-2700.0,0.00033,30]
[343517090,1732712321680,-2700.0,0.00033,30]
[343517091,1732712321702,-2700.0,0.00033,30]
[343517092,1732712321726,-2700.0,0.00033,30]
[343517093,1732712321750,-2700.0,0.00033,30]
[343517094,1732712321774,-2700.0,0.00033,30]
[343517095,1732712321872,-2700.0,0.00033,30]
[343517097,1732712321897,-2700.0,0.00033,30]
[343517098,1732712321921,-2700.0,0.00033,30]
[343517099,1732712321946,-2700.0,0.00033,30]
[343517100,1732712321970,-2700.0,0.00033,30]
[343517101,1732712321994,-5351.45952397,0.00033,30]
[343517102,1732712322022,-500.0,0.00033,30]
[343517103,1732712322048,-500.0,0.00033,30]
[343517104,1732712322071,-502.99704392,0.00033,30]
[343517105,1732712322094,-500.0,0.00033,30]
[343517106,1732712322117,-800.0,0.00033,30]
[343517107,1732712322141,-800.0,0.00033,30]
[343517108,1732712322164,-800.0,0.00033,30]
[343517110,1732712322191,-800.0,0.00033,30]
[343517111,1732712322215,-800.0,0.00033,30]
[343517112,1732712322239,-800.0,0.00033,30]
[343517113,1732712322269,-800.0,0.00033,30]
[343517114,1732712322295,-800.0,0.00033,30]
[343517115,1732712322319,-800.0,0.00033,30]
[343517116,1732712322344,-800.0,0.00033,30]
[343517117,1732712322368,-800.0,0.00033,30]
[343517118,1732712322392,-800.0,0.00033,30]
[343517119,1732712322416,-800.0,0.00033,30]
[343517121,1732712322439,-800.0,0.00033,30]
[343517122,1732712322463,-864.71206455,0.00033,30]
[343517123,1732712322486,-800.0,0.00033,30]
[343517124,1732712322512,-800.0,0.00033,30]
[343517125,1732712322536,-800.0,0.00033,30]
[343517126,1732712322560,-800.0,0.00033,30]
[343517127,1732712322587,-800.0,0.00033,30]
[343517128,1732712322610,-800.0,0.00033,30]
[343517129,1732712322633,-800.0,0.00033,30]
[343517130,1732712322657,-800.0,0.00033,30]
[343517131,1732712322679,-800.0,0.00033,30]
[343517132,1732712322701,-800.0,0.00033,30]
[343517134,1732712322723,-800.0,0.00033,30]
[343517135,1732712322746,-1366.98537592,0.00033,30]
[343517136,1732712322770,-313.50263984,0.00033419,30]
[343517137,1732712322793,-151.0,0.00033753,120]
[343517138,1732712322816,-500.0,0.00033918,60]
[343517139,1732712322844,-500.0,0.00034,120]
[343517140,1732712322869,-380.827508,0.00034,30]
[343517141,1732712322894,-153.3,0.000343,31]
[343517142,1732712322919,-153.3,0.000343,31]
[343517143,1732712322946,-153.3,0.000343,31]
[343517144,1732712322971,-153.3,0.000343,31]
[343517145,1732712322997,-153.3,0.000343,31]
[343517146,1732712323024,-153.3,0.000343,31]
[343517147,1732712323048,-153.3,0.000343,31]
[343517148,1732712323073,-153.3,0.000343,31]
[343517149,1732712323098,-153.3,0.000343,31]